[Event "Late-Titled-Tuesday-Blitz-April-30-2024"]
[Site "Chess.com"]
[Date "2024.04.30"]
[Round "2"]
[White "KorolDimitriy75"]
[Black "Bykov_Egor"]
[Result "1-0"]
[WhiteElo "2357"]
[BlackElo "2614"]
[TimeControl "180+1"]
[EndTime "14:19:26 PDT"]
[Termination "KorolDimitriy75 won by resignation"]

1. d4 {[%clk 0:03:00.9]} 1... Nf6 {[%clk 0:02:59.2]} 2. c4 {[%clk 0:03:00.9]}
2... g6 {[%clk 0:02:57.6]} 3. Nc3 {[%clk 0:03:01.3]} 3... Bg7 {[%clk 0:02:58.1]}
4. e4 {[%clk 0:03:01.5]} 4... d6 {[%clk 0:02:58.8]} 5. Nf3 {[%clk 0:03:02.4]}
5... O-O {[%clk 0:02:58.3]} 6. Be2 {[%clk 0:03:03.3]} 6... e5 {[%clk 0:02:58.5]}
7. dxe5 {[%clk 0:03:04.2]} 7... dxe5 {[%clk 0:02:57.6]} 8. Qxd8 {[%clk
0:03:05.1]} 8... Rxd8 {[%clk 0:02:57.2]} 9. Bg5 {[%clk 0:03:06]} 9... Re8 {[%clk
0:02:51.2]} 10. O-O-O {[%clk 0:03:05.5]} 10... h6 {[%clk 0:02:29.1]} 11. Bh4
{[%clk 0:03:05.3]} 11... Bg4 {[%clk 0:02:11]} 12. Nd5 {[%clk 0:02:18.7]} 12...
Nxd5 {[%clk 0:02:05.5]} 13. cxd5 {[%clk 0:02:19.6]} 13... c6 {[%clk 0:01:57.7]}
14. Ng1 {[%clk 0:01:47.9]} 14... Bd7 {[%clk 0:01:52.8]} 15. Bc4 {[%clk
0:01:30.9]} 15... b5 {[%clk 0:01:21.4]} 16. dxc6 {[%clk 0:01:27.1]} 16... Bxc6
{[%clk 0:01:13.5]} 17. Bd5 {[%clk 0:01:27.1]} 17... Bxd5 {[%clk 0:01:06.5]} 18.
Rxd5 {[%clk 0:01:28]} 18... Nc6 {[%clk 0:01:00.8]} 19. Ne2 {[%clk 0:01:06]}
19... Rac8 {[%clk 0:00:46.5]} 20. Kb1 {[%clk 0:01:04.8]} 20... a6 {[%clk
0:00:46.4]} 21. Rhd1 {[%clk 0:01:02]} 21... f5 {[%clk 0:00:19.9]} 22. f3 {[%clk
0:01:01.6]} 22... fxe4 {[%clk 0:00:17]} 23. fxe4 {[%clk 0:01:02.5]} 23... Nd4
{[%clk 0:00:17.3]} 24. Nxd4 {[%clk 0:00:45.7]} 24... exd4 {[%clk 0:00:18.2]} 25.
Bf2 {[%clk 0:00:46.1]} 25... Rxe4 {[%clk 0:00:17.8]} 26. Bxd4 {[%clk 0:00:46]}
26... Bxd4 {[%clk 0:00:11.7]} 27. R5xd4 {[%clk 0:00:46.9]} 27... Rxd4 {[%clk
0:00:11.7]} 28. Rxd4 {[%clk 0:00:47.7]} 28... Rc6 {[%clk 0:00:11]} 29. Rd7
{[%clk 0:00:34.4]} 29... h5 {[%clk 0:00:09.9]} 30. g3 {[%clk 0:00:15.3]} 30...
Rf6 {[%clk 0:00:08.1]} 31. Kc2 {[%clk 0:00:11.3]} 31... Rf2+ {[%clk 0:00:08.1]}
32. Rd2 {[%clk 0:00:11]} 32... Rxd2+ {[%clk 0:00:05.1]} 33. Kxd2 {[%clk
0:00:11.9]} 33... Kf7 {[%clk 0:00:05.6]} 34. Kc3 {[%clk 0:00:07.4]} 34... Ke6
{[%clk 0:00:04.3]} 35. Kb4 {[%clk 0:00:06.7]} 35... Kf5 {[%clk 0:00:04.9]} 36.
Ka5 {[%clk 0:00:06.5]} 36... Kg4 {[%clk 0:00:05.6]} 37. Kxa6 {[%clk 0:00:06.1]}
37... Kh3 {[%clk 0:00:06.2]} 38. Kxb5 {[%clk 0:00:03.7]} 38... Kxh2 {[%clk
0:00:06.8]} 39. a4 {[%clk 0:00:04.4]} 39... g5 {[%clk 0:00:07.1]} 40. a5 {[%clk
0:00:04.2]} 40... h4 {[%clk 0:00:07.8]} 41. gxh4 {[%clk 0:00:02.6]} 41... g4
{[%clk 0:00:08.1]} 42. a6 {[%clk 0:00:02.4]} 42... g3 {[%clk 0:00:08.7]} 43. a7
{[%clk 0:00:02]} 43... g2 {[%clk 0:00:09.4]} 44. a8=Q {[%clk 0:00:02.1]} 44...
g1=Q {[%clk 0:00:10.3]} 45. Qb8+ {[%clk 0:00:01]} 45... Kh3 {[%clk 0:00:10.4]}
46. Qc8+ {[%clk 0:00:01]} 46... Kxh4 {[%clk 0:00:10.3]} 47. Qc4+ {[%clk
0:00:01.8]} 47... Kh5 {[%clk 0:00:10.4]} 48. b4 {[%clk 0:00:02.7]} 48... Qg7
{[%clk 0:00:09.3]} 49. Qc5+ {[%clk 0:00:03.1]} 49... Kg4 {[%clk 0:00:09.3]} 50.
Ka6 {[%clk 0:00:03.7]} 50... Qf6+ {[%clk 0:00:08.7]} 51. Ka5 {[%clk 0:00:04]}
51... Qa1+ {[%clk 0:00:09]} 52. Kb6 {[%clk 0:00:04.5]} 52... Qd1 {[%clk
0:00:08.3]} 53. b5 {[%clk 0:00:04.5]} 53... Qd8+ {[%clk 0:00:08.8]} 54. Qc7
{[%clk 0:00:04.2]} 54... Qf6+ {[%clk 0:00:09.3]} 55. Kb7 {[%clk 0:00:04.5]}
55... Kh3 {[%clk 0:00:08.9]} 56. b6 {[%clk 0:00:04.7]} 56... Qf3+ {[%clk
0:00:09.4]} 57. Kb8 {[%clk 0:00:04.8]} 57... Qf8+ {[%clk 0:00:09.7]} 58. Qc8+
{[%clk 0:00:05.1]} 1-0

[Event "Late-Titled-Tuesday-Blitz-April-30-2024"]
[Site "Chess.com"]
[Date "2024.04.30"]
[Round "2"]
[White "Iskusnyh"]
[Black "shimastream"]
[Result "0-1"]
[WhiteElo "2625"]
[BlackElo "3025"]
[TimeControl "180+1"]
[EndTime "14:19:28 PDT"]
[Termination "shimastream won on time"]

1. d4 {[%clk 0:03:00.9]} 1... b6 {[%clk 0:02:59.8]} 2. c4 {[%clk 0:02:57.1]}
2... Bb7 {[%clk 0:03:00.7]} 3. Nc3 {[%clk 0:02:56.3]} 3... g6 {[%clk 0:02:59]}
4. e4 {[%clk 0:02:50]} 4... Bg7 {[%clk 0:02:59.4]} 5. Nf3 {[%clk 0:02:50.1]}
5... d6 {[%clk 0:03:00.1]} 6. Bd3 {[%clk 0:02:43.8]} 6... e6 {[%clk 0:03:00.5]}
7. O-O {[%clk 0:02:42.6]} 7... Nd7 {[%clk 0:03:00.2]} 8. Be3 {[%clk 0:02:37.7]}
8... h6 {[%clk 0:02:59.7]} 9. Qd2 {[%clk 0:02:37.1]} 9... g5 {[%clk 0:02:57.7]}
10. d5 {[%clk 0:02:36.7]} 10... Qe7 {[%clk 0:02:50]} 11. Nd4 {[%clk 0:02:31]}
11... Ngf6 {[%clk 0:02:47.7]} 12. Bc2 {[%clk 0:02:24.4]} 12... Ng4 {[%clk
0:02:34.8]} 13. Ndb5 {[%clk 0:01:54.6]} 13... Nde5 {[%clk 0:02:30.3]} 14. dxe6
{[%clk 0:01:16.4]} 14... fxe6 {[%clk 0:02:27.1]} 15. Bd4 {[%clk 0:01:15.1]}
15... a6 {[%clk 0:02:21.6]} 16. Na3 {[%clk 0:00:54]} 16... c5 {[%clk 0:02:21.8]}
17. Be3 {[%clk 0:00:50.2]} 17... O-O {[%clk 0:02:18.6]} 18. Kh1 {[%clk
0:00:43.8]} 18... Nxe3 {[%clk 0:02:10.3]} 19. Qxe3 {[%clk 0:00:43.1]} 19... Rf7
{[%clk 0:02:02.8]} 20. Rad1 {[%clk 0:00:38.6]} 20... Raf8 {[%clk 0:02:02.2]} 21.
f3 {[%clk 0:00:37.7]} 21... Ng6 {[%clk 0:01:58.7]} 22. Bd3 {[%clk 0:00:30.5]}
22... Be5 {[%clk 0:01:57]} 23. Rfe1 {[%clk 0:00:28.2]} 23... g4 {[%clk
0:01:48.6]} 24. Be2 {[%clk 0:00:26.6]} 24... Qh4 {[%clk 0:01:46.8]} 25. Qg1
{[%clk 0:00:25.7]} 25... gxf3 {[%clk 0:01:35.8]} 26. Bxf3 {[%clk 0:00:24]} 26...
Kh7 {[%clk 0:01:34.1]} 27. Nc2 {[%clk 0:00:23]} 27... Rg8 {[%clk 0:01:17.4]} 28.
Rf1 {[%clk 0:00:21.2]} 28... Qg5 {[%clk 0:01:09.9]} 29. Ne1 {[%clk 0:00:19.8]}
29... Nh4 {[%clk 0:01:09.1]} 30. Qf2 {[%clk 0:00:17.2]} 30... Rgf8 {[%clk
0:00:54.4]} 31. Qe2 {[%clk 0:00:16.4]} 31... Ng6 {[%clk 0:00:53.3]} 32. Nd3
{[%clk 0:00:15.9]} 32... Bd4 {[%clk 0:00:50.4]} 33. e5 {[%clk 0:00:14.4]} 33...
Bxf3 {[%clk 0:00:43.6]} 34. Rxf3 {[%clk 0:00:14.6]} 34... Rxf3 {[%clk
0:00:43.6]} 35. gxf3 {[%clk 0:00:15.1]} 35... Nxe5 {[%clk 0:00:43.5]} 36. Nxe5
{[%clk 0:00:14.8]} 36... Bxe5 {[%clk 0:00:44.4]} 37. Ne4 {[%clk 0:00:14.9]}
37... Qf4 {[%clk 0:00:44.3]} 38. Rf1 {[%clk 0:00:12.7]} 38... Rg8 {[%clk
0:00:42.1]} 39. Ng3 {[%clk 0:00:12.5]} 39... Kh8 {[%clk 0:00:39.5]} 40. Rf2
{[%clk 0:00:12.4]} 40... Qh4 {[%clk 0:00:39.5]} 41. Nf1 {[%clk 0:00:09.9]} 41...
Rf8 {[%clk 0:00:32.9]} 42. Rg2 {[%clk 0:00:09.9]} 42... Qf4 {[%clk 0:00:30.4]}
43. Rg3 {[%clk 0:00:09.5]} 43... Qd4 {[%clk 0:00:29.1]} 44. Rh3 {[%clk
0:00:06.3]} 44... Kh7 {[%clk 0:00:25.1]} 45. Nd2 {[%clk 0:00:06.3]} 45... Qxb2
{[%clk 0:00:21.2]} 46. Qe3 {[%clk 0:00:05]} 46... Qc1+ {[%clk 0:00:17.3]} 47.
Kg2 {[%clk 0:00:04.6]} 47... Rg8+ {[%clk 0:00:17.6]} 48. Rg3 {[%clk 0:00:03.6]}
48... Bxg3 {[%clk 0:00:17.7]} 49. hxg3 {[%clk 0:00:04.5]} 49... Qc2 {[%clk
0:00:16.2]} 50. Kh3 {[%clk 0:00:02.5]} 50... Qg6 {[%clk 0:00:11]} 51. g4 {[%clk
0:00:02.8]} 51... d5 {[%clk 0:00:11.3]} 52. Nf1 {[%clk 0:00:02.6]} 52... d4
{[%clk 0:00:10.6]} 53. Qe2 {[%clk 0:00:02.3]} 53... d3 {[%clk 0:00:10.7]} 54.
Qe3 {[%clk 0:00:02.1]} 54... Rd8 {[%clk 0:00:09.8]} 55. Nd2 {[%clk 0:00:02.1]}
55... Qg5 {[%clk 0:00:10.2]} 56. Qf2 {[%clk 0:00:01.8]} 56... Qf4 {[%clk
0:00:10.2]} 57. Kg2 {[%clk 0:00:01.6]} 57... Rg8 {[%clk 0:00:08]} 58. Kh3 {[%clk
0:00:01.4]} 58... h5 {[%clk 0:00:08]} 59. Qh4 {[%clk 0:00:01]} 59... Qxd2 {[%clk
0:00:06.8]} 60. Qe7+ {[%clk 0:00:01.1]} 60... Rg7 {[%clk 0:00:06.7]} 0-1

[Event "Late-Titled-Tuesday-Blitz-April-30-2024"]
[Site "Chess.com"]
[Date "2024.04.30"]
[Round "2"]
[White "JaackCamel"]
[Black "DeArron_Fox"]
[Result "0-1"]
[WhiteElo "2263"]
[BlackElo "2504"]
[TimeControl "180+1"]
[EndTime "14:19:29 PDT"]
[Termination "DeArron_Fox won by resignation"]

1. d4 {[%clk 0:03:00.9]} 1... d5 {[%clk 0:02:59.3]} 2. c4 {[%clk 0:03:00.3]}
2... e6 {[%clk 0:02:59]} 3. Nc3 {[%clk 0:02:59.6]} 3... Nf6 {[%clk 0:02:59.5]}
4. cxd5 {[%clk 0:02:59.2]} 4... exd5 {[%clk 0:03:00.4]} 5. Bg5 {[%clk
0:02:58.8]} 5... c6 {[%clk 0:02:59.8]} 6. e3 {[%clk 0:02:58.3]} 6... Be7 {[%clk
0:03:00.3]} 7. Bd3 {[%clk 0:02:57.8]} 7... Nbd7 {[%clk 0:03:01]} 8. Nge2 {[%clk
0:02:57]} 8... Nh5 {[%clk 0:03:01.6]} 9. Bxe7 {[%clk 0:02:54.2]} 9... Qxe7
{[%clk 0:03:02.5]} 10. Qc2 {[%clk 0:02:53.3]} 10... g6 {[%clk 0:03:01.9]} 11.
O-O-O {[%clk 0:02:48.6]} 11... Nb6 {[%clk 0:03:01.2]} 12. h3 {[%clk 0:02:44.9]}
12... Be6 {[%clk 0:03:01.3]} 13. Kb1 {[%clk 0:02:44.3]} 13... O-O-O {[%clk
0:03:00.9]} 14. Rc1 {[%clk 0:02:44]} 14... Kb8 {[%clk 0:03:01.3]} 15. Na4 {[%clk
0:02:38]} 15... Nxa4 {[%clk 0:02:50.8]} 16. Qxa4 {[%clk 0:02:37.1]} 16... Ng7
{[%clk 0:02:46.6]} 17. g4 {[%clk 0:02:34.1]} 17... h5 {[%clk 0:02:45.6]} 18. Rc3
{[%clk 0:02:01.9]} 18... Bc8 {[%clk 0:01:47]} 19. Rg1 {[%clk 0:01:46.5]} 19...
hxg4 {[%clk 0:01:44.5]} 20. hxg4 {[%clk 0:01:46.3]} 20... Rh2 {[%clk 0:01:27.3]}
21. Rf1 {[%clk 0:01:35.7]} 21... Ne8 {[%clk 0:00:22.5]} 22. Ra3 {[%clk
0:01:34.9]} 22... a6 {[%clk 0:00:22.5]} 23. Rb3 {[%clk 0:01:21.8]} 23... Ka7
{[%clk 0:00:08.9]} 24. Qa5 {[%clk 0:01:20.3]} 24... Qc7 {[%clk 0:00:07.9]} 25.
Qc5+ {[%clk 0:01:18.4]} 25... Ka8 {[%clk 0:00:03.9]} 26. Nf4 {[%clk 0:01:14.8]}
26... Nd6 {[%clk 0:00:03]} 27. f3 {[%clk 0:01:09.6]} 27... Be6 {[%clk
0:00:02.5]} 28. Rc1 {[%clk 0:01:09]} 28... Qd7 {[%clk 0:00:01.7]} 29. Qb6 {[%clk
0:01:05.2]} 29... Nb5 {[%clk 0:00:01.8]} 30. a4 {[%clk 0:00:54.5]} 30... Na7
{[%clk 0:00:01.9]} 31. Bxa6 {[%clk 0:00:42.1]} 31... bxa6 {[%clk 0:00:02.1]} 32.
Qxa6 {[%clk 0:00:40.8]} 32... Rb8 {[%clk 0:00:02.6]} 33. Rxb8+ {[%clk
0:00:31.6]} 33... Kxb8 {[%clk 0:00:03.5]} 34. Rc3 {[%clk 0:00:31.8]} 34... Qb7
{[%clk 0:00:03.3]} 35. Qxb7+ {[%clk 0:00:21.9]} 35... Kxb7 {[%clk 0:00:04.2]}
36. Rb3+ {[%clk 0:00:20]} 36... Kc7 {[%clk 0:00:03]} 37. Nd3 {[%clk 0:00:19.3]}
37... Rh3 {[%clk 0:00:01.9]} 38. Ne5 {[%clk 0:00:17.3]} 38... Nc8 {[%clk
0:00:02.2]} 39. Rc3 {[%clk 0:00:17.1]} 39... Ne7 {[%clk 0:00:01.6]} 40. b4
{[%clk 0:00:16.9]} 40... f6 {[%clk 0:00:02.2]} 41. Nxc6 {[%clk 0:00:15]} 41...
Nxc6 {[%clk 0:00:03.1]} 42. b5 {[%clk 0:00:15.5]} 42... Bd7 {[%clk 0:00:03.9]}
43. bxc6 {[%clk 0:00:14.2]} 43... Bxc6 {[%clk 0:00:04.8]} 44. e4 {[%clk
0:00:14.4]} 44... dxe4 {[%clk 0:00:04.7]} 45. d5 {[%clk 0:00:14.9]} 45... Rxf3
{[%clk 0:00:03.5]} 46. Rxc6+ {[%clk 0:00:14.9]} 46... Kb7 {[%clk 0:00:03.8]} 47.
Re6 {[%clk 0:00:14.5]} 47... f5 {[%clk 0:00:03.3]} 48. gxf5 {[%clk 0:00:14.5]}
48... gxf5 {[%clk 0:00:04.2]} 49. Kc2 {[%clk 0:00:14.4]} 49... Rd3 {[%clk
0:00:03.6]} 50. d6 {[%clk 0:00:14.2]} 50... Kc6 {[%clk 0:00:03.1]} 51. Rf6
{[%clk 0:00:13.4]} 51... Rd5 {[%clk 0:00:02.4]} 52. d7+ {[%clk 0:00:12.5]} 52...
Kxd7 {[%clk 0:00:02.6]} 53. Kc3 {[%clk 0:00:11.2]} 53... Ke7 {[%clk 0:00:03]}
54. Ra6 {[%clk 0:00:10.1]} 54... Rd6 {[%clk 0:00:01.9]} 55. Ra5 {[%clk
0:00:09.9]} 55... Ke6 {[%clk 0:00:02.4]} 56. Ra8 {[%clk 0:00:10]} 56... Ke5
{[%clk 0:00:02.6]} 57. Re8+ {[%clk 0:00:09.3]} 57... Kf4 {[%clk 0:00:03.1]} 58.
a5 {[%clk 0:00:09.8]} 58... e3 {[%clk 0:00:03.3]} 59. Kc4 {[%clk 0:00:07.9]}
59... Kf3 {[%clk 0:00:03.3]} 60. Kc5 {[%clk 0:00:08.2]} 60... Rd1 {[%clk
0:00:03.6]} 61. a6 {[%clk 0:00:08.1]} 61... e2 {[%clk 0:00:04.2]} 62. Rf8 {[%clk
0:00:07.3]} 62... f4 {[%clk 0:00:03.1]} 63. Re8 {[%clk 0:00:06]} 63... e1=Q
{[%clk 0:00:02.8]} 64. Rxe1 {[%clk 0:00:05.3]} 64... Rxe1 {[%clk 0:00:03.7]} 65.
Kb6 {[%clk 0:00:05.5]} 65... Ra1 {[%clk 0:00:04.6]} 0-1

[Event "Late-Titled-Tuesday-Blitz-April-30-2024"]
[Site "Chess.com"]
[Date "2024.04.30"]
[Round "2"]
[White "MKlose11"]
[Black "Njal28"]
[Result "0-1"]
[WhiteElo "2633"]
[BlackElo "3091"]
[TimeControl "180+1"]
[EndTime "14:19:35 PDT"]
[Termination "Njal28 won by resignation"]

1. e4 {[%clk 0:02:57.7]} 1... e5 {[%clk 0:03:00.1]} 2. Nf3 {[%clk 0:02:57.4]}
2... Nc6 {[%clk 0:03:00.7]} 3. d4 {[%clk 0:02:57.6]} 3... exd4 {[%clk
0:03:00.7]} 4. Bc4 {[%clk 0:02:57.6]} 4... Nf6 {[%clk 0:03:00.6]} 5. O-O {[%clk
0:02:56.7]} 5... Nxe4 {[%clk 0:02:51.9]} 6. Re1 {[%clk 0:02:56.5]} 6... d5
{[%clk 0:02:51.6]} 7. Bxd5 {[%clk 0:02:55.2]} 7... Qxd5 {[%clk 0:02:52.2]} 8.
Nc3 {[%clk 0:02:55]} 8... Qa5 {[%clk 0:02:49.4]} 9. Nxe4 {[%clk 0:02:54.2]} 9...
Be7 {[%clk 0:02:49.8]} 10. Bg5 {[%clk 0:02:50.9]} 10... O-O {[%clk 0:02:00.9]}
11. Bxe7 {[%clk 0:02:48.6]} 11... Nxe7 {[%clk 0:02:01.8]} 12. Qxd4 {[%clk
0:02:48.1]} 12... Nc6 {[%clk 0:01:57.7]} 13. Qc3 {[%clk 0:02:38.6]} 13... Qxc3
{[%clk 0:01:57.5]} 14. Nxc3 {[%clk 0:02:38.7]} 14... Bf5 {[%clk 0:01:55.1]} 15.
Nd5 {[%clk 0:02:28.1]} 15... Bxc2 {[%clk 0:01:53.3]} 16. Ne7+ {[%clk 0:02:17]}
16... Nxe7 {[%clk 0:01:47]} 17. Rxe7 {[%clk 0:02:17.9]} 17... Rac8 {[%clk
0:01:40.5]} 18. Rc1 {[%clk 0:02:16.9]} 18... Bf5 {[%clk 0:01:28]} 19. Rcxc7
{[%clk 0:02:14.3]} 19... Rxc7 {[%clk 0:01:28.9]} 20. Rxc7 {[%clk 0:02:14.6]}
20... Rc8 {[%clk 0:01:23]} 21. Rxc8+ {[%clk 0:02:10.9]} 21... Bxc8 {[%clk
0:01:23.9]} 22. Kf1 {[%clk 0:02:08]} 22... Kf8 {[%clk 0:01:19.5]} 23. Ke2 {[%clk
0:02:04.5]} 23... Be6 {[%clk 0:01:20]} 24. a3 {[%clk 0:02:01.5]} 24... Bd5
{[%clk 0:01:18.2]} 25. Ne1 {[%clk 0:01:57.4]} 25... Ke7 {[%clk 0:01:19.1]} 26.
Ke3 {[%clk 0:01:56.5]} 26... Kd6 {[%clk 0:01:16.4]} 27. Kd4 {[%clk 0:01:56.6]}
27... Kc6 {[%clk 0:01:14.9]} 28. g3 {[%clk 0:01:54.4]} 28... Be6 {[%clk
0:01:09.6]} 29. h4 {[%clk 0:01:54.1]} 29... Kb5 {[%clk 0:01:09.7]} 30. Nd3
{[%clk 0:01:52.7]} 30... b6 {[%clk 0:00:59.8]} 31. Nf4 {[%clk 0:01:50.5]} 31...
Ba2 {[%clk 0:00:52.8]} 32. Nh5 {[%clk 0:01:49.8]} 32... g6 {[%clk 0:00:53.4]}
33. Nf6 {[%clk 0:01:48]} 33... h5 {[%clk 0:00:54]} 34. Ne4 {[%clk 0:01:45]}
34... Be6 {[%clk 0:00:47.3]} 35. Ng5 {[%clk 0:01:35.3]} 35... Ba2 {[%clk
0:00:46.7]} 36. Ne4 {[%clk 0:01:28.2]} 36... Bb3 {[%clk 0:00:39.7]} 37. Ng5
{[%clk 0:01:19.1]} 37... a5 {[%clk 0:00:35.9]} 38. f3 {[%clk 0:01:19.1]} 38...
Kc6 {[%clk 0:00:32.8]} 39. g4 {[%clk 0:01:16]} 39... Kd6 {[%clk 0:00:20.2]} 40.
gxh5 {[%clk 0:01:13.8]} 40... gxh5 {[%clk 0:00:21.1]} 41. Ne4+ {[%clk
0:01:13.8]} 41... Ke6 {[%clk 0:00:21.3]} 42. Ng3 {[%clk 0:01:14]} 42... Bd1
{[%clk 0:00:21.2]} 43. Nxh5 {[%clk 0:01:10.4]} 43... Bxf3 {[%clk 0:00:20.8]} 44.
Nf4+ {[%clk 0:01:10.5]} 44... Kf5 {[%clk 0:00:21]} 45. Nd3 {[%clk 0:01:03.2]}
45... f6 {[%clk 0:00:21.4]} 46. Ke3 {[%clk 0:00:58.7]} 46... Bc6 {[%clk
0:00:15.3]} 47. Nf2 {[%clk 0:00:55]} 47... Be8 {[%clk 0:00:14.6]} 48. b4 {[%clk
0:00:50.4]} 48... axb4 {[%clk 0:00:14.2]} 49. axb4 {[%clk 0:00:50.4]} 49... Ke5
{[%clk 0:00:14.9]} 50. Ng4+ {[%clk 0:00:47.4]} 50... Kf5 {[%clk 0:00:15.1]} 51.
Nf2 {[%clk 0:00:47.6]} 51... Bh5 {[%clk 0:00:10.5]} 52. Ne4 {[%clk 0:00:46.1]}
52... Ke5 {[%clk 0:00:10.3]} 53. Nc3 {[%clk 0:00:43.3]} 53... f5 {[%clk
0:00:09.9]} 54. Na4 {[%clk 0:00:42.2]} 54... f4+ {[%clk 0:00:08.6]} 55. Kf2
{[%clk 0:00:41.8]} 55... b5 {[%clk 0:00:09.1]} 56. Nc5 {[%clk 0:00:40.4]} 56...
Kf5 {[%clk 0:00:05.3]} 57. Na6 {[%clk 0:00:21.3]} 57... Be8 {[%clk 0:00:03]} 58.
Nc7 {[%clk 0:00:20.8]} 58... Bc6 {[%clk 0:00:03.7]} 59. Na6 {[%clk 0:00:17.7]}
59... Kg4 {[%clk 0:00:03.1]} 60. Nb8 {[%clk 0:00:17.6]} 60... Be8 {[%clk
0:00:02.6]} 61. Na6 {[%clk 0:00:16.5]} 61... Kxh4 {[%clk 0:00:03.1]} 62. Nc5
{[%clk 0:00:14.4]} 62... Bc6 {[%clk 0:00:02.4]} 63. Ne6 {[%clk 0:00:14.1]} 63...
Kg4 {[%clk 0:00:02.3]} 64. Nd4 {[%clk 0:00:14.2]} 64... Bd7 {[%clk 0:00:03]} 65.
Ke2 {[%clk 0:00:13.9]} 65... Kg3 {[%clk 0:00:02.7]} 66. Kf1 {[%clk 0:00:11.1]}
66... f3 {[%clk 0:00:03.1]} 67. Nc2 {[%clk 0:00:07.8]} 67... Bh3+ {[%clk
0:00:03.1]} 68. Ke1 {[%clk 0:00:07.4]} 68... f2+ {[%clk 0:00:04]} 69. Kd2 {[%clk
0:00:07.4]} 69... f1=Q {[%clk 0:00:04.9]} 0-1

[Event "Late-Titled-Tuesday-Blitz-April-30-2024"]
[Site "Chess.com"]
[Date "2024.04.30"]
[Round "2"]
[White "bobo_panda"]
[Black "grandmastergauri"]
[Result "1-0"]
[WhiteElo "2427"]
[BlackElo "2721"]
[TimeControl "180+1"]
[EndTime "14:19:35 PDT"]
[Termination "bobo_panda won on time"]

1. e4 {[%clk 0:03:00.9]} 1... e5 {[%clk 0:02:59.7]} 2. Nf3 {[%clk 0:03:00.9]}
2... Nc6 {[%clk 0:02:59.8]} 3. Bb5 {[%clk 0:03:01.1]} 3... Nf6 {[%clk 0:03:00]}
4. d3 {[%clk 0:03:00.8]} 4... Bc5 {[%clk 0:02:59]} 5. O-O {[%clk 0:03:00.6]}
5... d6 {[%clk 0:02:56]} 6. c3 {[%clk 0:03:00.9]} 6... O-O {[%clk 0:02:55.7]} 7.
d4 {[%clk 0:02:58.3]} 7... Bb6 {[%clk 0:02:52.1]} 8. Re1 {[%clk 0:02:54.4]} 8...
Bg4 {[%clk 0:02:47]} 9. Bxc6 {[%clk 0:02:45.8]} 9... bxc6 {[%clk 0:02:46.3]} 10.
dxe5 {[%clk 0:02:46]} 10... Bxf3 {[%clk 0:02:37.6]} 11. Qxf3 {[%clk 0:02:41.8]}
11... dxe5 {[%clk 0:02:37.3]} 12. Bg5 {[%clk 0:02:41]} 12... a5 {[%clk
0:02:28.4]} 13. Na3 {[%clk 0:02:39.4]} 13... h6 {[%clk 0:02:25.3]} 14. Bxf6
{[%clk 0:02:37.3]} 14... Qxf6 {[%clk 0:02:26]} 15. Qxf6 {[%clk 0:02:34.7]} 15...
gxf6 {[%clk 0:02:26.9]} 16. Nc4 {[%clk 0:02:34.7]} 16... a4 {[%clk 0:02:22.6]}
17. Rad1 {[%clk 0:02:32.3]} 17... Rfd8 {[%clk 0:02:14.6]} 18. Kf1 {[%clk
0:02:31.5]} 18... Kf8 {[%clk 0:02:13.5]} 19. Ke2 {[%clk 0:02:27.6]} 19... Ke7
{[%clk 0:02:13.5]} 20. f3 {[%clk 0:02:17.1]} 20... h5 {[%clk 0:02:12.8]} 21. g3
{[%clk 0:02:15]} 21... Rxd1 {[%clk 0:02:05.6]} 22. Rxd1 {[%clk 0:02:14.8]} 22...
Rg8 {[%clk 0:02:03.3]} 23. Kf1 {[%clk 0:02:02.8]} 23... Ke6 {[%clk 0:01:58.8]}
24. Kg2 {[%clk 0:02:02.5]} 24... Rb8 {[%clk 0:01:51.2]} 25. h4 {[%clk
0:01:45.7]} 25... Bc5 {[%clk 0:01:48.7]} 26. g4 {[%clk 0:01:39.9]} 26... Bb6
{[%clk 0:01:25.3]} 27. Kh3 {[%clk 0:01:33.9]} 27... Rh8 {[%clk 0:01:21.9]} 28.
Rd2 {[%clk 0:01:29.6]} 28... Bc5 {[%clk 0:01:18.2]} 29. Rg2 {[%clk 0:01:26.5]}
29... Be7 {[%clk 0:01:09]} 30. Ne3 {[%clk 0:01:18.6]} 30... hxg4+ {[%clk
0:01:03.1]} 31. fxg4 {[%clk 0:01:18.4]} 31... a3 {[%clk 0:01:00.7]} 32. b3
{[%clk 0:01:02.7]} 32... Rd8 {[%clk 0:00:51.9]} 33. Nf5 {[%clk 0:00:54.5]} 33...
Rd3+ {[%clk 0:00:48.8]} 34. Rg3 {[%clk 0:00:52.3]} 34... Rd2 {[%clk 0:00:49.2]}
35. h5 {[%clk 0:00:36.1]} 35... Bf8 {[%clk 0:00:45.7]} 36. h6 {[%clk 0:00:34]}
36... Bxh6 {[%clk 0:00:45.7]} 37. Nxh6 {[%clk 0:00:33.8]} 37... Rxa2 {[%clk
0:00:46.3]} 38. Nf5 {[%clk 0:00:30.5]} 38... Rb2 {[%clk 0:00:42.5]} 39. Rg1
{[%clk 0:00:27.3]} 39... Rxb3 {[%clk 0:00:41.9]} 40. Rc1 {[%clk 0:00:27.2]}
40... a2 {[%clk 0:00:40.9]} 41. Ra1 {[%clk 0:00:27.2]} 41... Rxc3+ {[%clk
0:00:41.1]} 42. Kh4 {[%clk 0:00:27.6]} 42... Rc2 {[%clk 0:00:37.1]} 43. Ng7+
{[%clk 0:00:27.2]} 43... Kd6 {[%clk 0:00:34.2]} 44. Ne8+ {[%clk 0:00:27.5]}
44... Kc5 {[%clk 0:00:32.2]} 45. Nxf6 {[%clk 0:00:25.2]} 45... Kb4 {[%clk
0:00:31]} 46. Nd7 {[%clk 0:00:24.9]} 46... Kb3 {[%clk 0:00:19.2]} 47. Nxe5
{[%clk 0:00:25]} 47... Kb2 {[%clk 0:00:19.8]} 48. Rxa2+ {[%clk 0:00:25.5]} 48...
Kxa2 {[%clk 0:00:20.6]} 49. Nxf7 {[%clk 0:00:26.3]} 49... c5 {[%clk 0:00:19.5]}
50. e5 {[%clk 0:00:25.5]} 50... c4 {[%clk 0:00:19.2]} 51. g5 {[%clk 0:00:23.7]}
51... c3 {[%clk 0:00:16]} 52. g6 {[%clk 0:00:22.2]} 52... Rg2 {[%clk 0:00:15.4]}
53. Ng5 {[%clk 0:00:20.2]} 53... Rh2+ {[%clk 0:00:09]} 54. Kg3 {[%clk
0:00:19.3]} 54... c2 {[%clk 0:00:04.4]} 55. g7 {[%clk 0:00:17.2]} 55... Rh1
{[%clk 0:00:01.6]} 56. g8=Q+ {[%clk 0:00:17.2]} 56... Kb2 {[%clk 0:00:02.3]} 57.
Nf3 {[%clk 0:00:12.1]} 57... c1=Q {[%clk 0:00:02.2]} 58. Qg4 {[%clk 0:00:11.3]}
58... Rf1 {[%clk 0:00:01.3]} 59. Qb4+ {[%clk 0:00:10.7]} 59... Kc2 {[%clk
0:00:01.3]} 60. Qc4+ {[%clk 0:00:10.7]} 60... Kb1 {[%clk 0:00:01.6]} 61. Qb3+
{[%clk 0:00:10.8]} 61... Qb2 {[%clk 0:00:01.5]} 62. Qd3+ {[%clk 0:00:11]} 62...
Ka2 {[%clk 0:00:01.2]} 63. Qxf1 {[%clk 0:00:11.4]} 63... Qc3 {[%clk 0:00:00.9]}
64. Qe2+ {[%clk 0:00:11.4]} 64... Ka3 {[%clk 0:00:00.6]} 65. Qe4 {[%clk
0:00:11.9]} 65... Qc1 {[%clk 0:00:00.3]} 66. Qd3+ {[%clk 0:00:11.3]} 66... Kb4
{[%clk 0:00:00.2]} 67. Kg4 {[%clk 0:00:11.7]} 1-0